[Event "Live Chess"]
[Site "Chess.com"]
[Date "2021.02.06"]
[Round "-"]
[White "champ_shivam"]
[Black "dabpacman"]
[Result "0-1"]
[CurrentPosition "1K6/1q6/1k6/8/2p5/8/8/8 w - -"]
[Timezone "UTC"]
[ECO "B27"]
[ECOUrl "https://www.chess.com/openings/Sicilian-Defense-Katalimov-Variation"]
[UTCDate "2021.02.06"]
[UTCTime "20:31:04"]
[WhiteElo "1268"]
[BlackElo "1130"]
[TimeControl "1200+10"]
[Termination "dabpacman won by checkmate"]
[StartTime "20:31:04"]
[EndDate "2021.02.06"]
[EndTime "20:52:17"]
[Link "https://www.chess.com/live/game/6472982708"]

1. e4 {[%clk 0:20:09.2]} 1... c5 {[%clk 0:20:05.5]} 2. Nf3 {[%clk 0:20:17.1]} 2... b6 {[%clk 0:20:09.9]} 3. Bc4 {[%clk 0:20:20.6]} 3... e6 {[%clk 0:20:17.6]} 4. O-O {[%clk 0:20:17.3]} 4... Bb7 {[%clk 0:20:24.8]} 5. d3 {[%clk 0:20:24.2]} 5... a6 {[%clk 0:20:31.8]} 6. a4 {[%clk 0:20:06.2]} 6... Qc7 {[%clk 0:20:36.9]} 7. Nc3 {[%clk 0:19:47.7]} 7... Nc6 {[%clk 0:20:42.3]} 8. Re1 {[%clk 0:19:53.5]} 8... Bd6 {[%clk 0:20:36.2]} 9. e5 {[%clk 0:19:51.5]} 9... Nxe5 {[%clk 0:20:40.5]} 10. Nxe5 {[%clk 0:19:56.5]} 10... Bxe5 {[%clk 0:20:48.3]} 11. Ne2 {[%clk 0:19:31.4]} 11... Bxh2+ {[%clk 0:20:38.4]} 12. Kh1 {[%clk 0:19:24.2]} 12... Nf6 {[%clk 0:19:42.3]} 13. f3 {[%clk 0:18:19.6]} 13... Ng4 {[%clk 0:17:10.3]} 14. fxg4 {[%clk 0:17:53.2]} 14... Qc6 {[%clk 0:17:12.2]} 15. Nf4 {[%clk 0:17:20]} 15... Bxf4 {[%clk 0:17:19.6]} 16. Qf3 {[%clk 0:17:17.5]} 16... Qxf3 {[%clk 0:16:07.9]} 17. gxf3 {[%clk 0:17:24.4]} 17... Bxf3+ {[%clk 0:16:16.1]} 18. Kg1 {[%clk 0:17:32.2]} 18... Bxc1 {[%clk 0:16:24.8]} 19. Raxc1 {[%clk 0:17:37.8]} 19... Bxg4 {[%clk 0:16:33.6]} 20. c3 {[%clk 0:17:17.8]} 20... O-O {[%clk 0:16:02.9]} 21. Re4 {[%clk 0:17:03.6]} 21... Bf5 {[%clk 0:16:02]} 22. Re2 {[%clk 0:16:57]} 22... d5 {[%clk 0:16:07.7]} 23. Bb3 {[%clk 0:16:47.1]} 23... b5 {[%clk 0:16:05.9]} 24. axb5 {[%clk 0:16:54.9]} 24... axb5 {[%clk 0:16:13.2]} 25. Kf2 {[%clk 0:16:39.8]} 25... Bxd3 {[%clk 0:16:16.3]} 26. Rd2 {[%clk 0:16:39.7]} 26... c4 {[%clk 0:16:24.4]} 27. Bc2 {[%clk 0:16:44.5]} 27... Bxc2 {[%clk 0:16:30]} 28. Rcxc2 {[%clk 0:16:45.7]} 28... Rab8 {[%clk 0:16:36.8]} 29. Ke3 {[%clk 0:16:49.1]} 29... b4 {[%clk 0:16:44.2]} 30. Rh2 {[%clk 0:16:52.2]} 30... bxc3 {[%clk 0:16:47.1]} 31. bxc3 {[%clk 0:17:01]} 31... h6 {[%clk 0:16:35.1]} 32. Rcg2 {[%clk 0:16:57.5]} 32... Kh7 {[%clk 0:16:41.9]} 33. Rg3 {[%clk 0:17:02.1]} 33... Rb3 {[%clk 0:16:47.9]} 34. Kd4 {[%clk 0:16:56.2]} 34... Rfb8 {[%clk 0:16:41.1]} 35. Rhg2 {[%clk 0:16:57.3]} 35... g6 {[%clk 0:16:33.7]} 36. Rf2 {[%clk 0:16:53.8]} 36... Kg7 {[%clk 0:16:30.2]} 37. Rgf3 {[%clk 0:16:58.2]} 37... R8b7 {[%clk 0:16:37.9]} 38. Rh2 {[%clk 0:17:04.7]} 38... Rb2 {[%clk 0:16:44.2]} 39. Rxb2 {[%clk 0:16:52.3]} 39... Rxb2 {[%clk 0:16:51.5]} 40. Rg3 {[%clk 0:16:49.6]} 40... Rd2+ {[%clk 0:16:57]} 41. Ke3 {[%clk 0:16:57.3]} 41... Rd3+ {[%clk 0:17:05.2]} 42. Kf2 {[%clk 0:17:05.6]} 42... Rxg3 {[%clk 0:17:15.1]} 43. Kxg3 {[%clk 0:17:14.4]} 43... Kf6 {[%clk 0:17:24.2]} 44. Kf4 {[%clk 0:17:23.2]} 44... g5+ {[%clk 0:17:33.5]} 45. Kg4 {[%clk 0:17:31.3]} 45... Ke5 {[%clk 0:17:42.8]} 46. Kf3 {[%clk 0:17:39.5]} 46... g4+ {[%clk 0:17:51.2]} 47. Kxg4 {[%clk 0:17:48.4]} 47... Ke4 {[%clk 0:18:00.8]} 48. Kh5 {[%clk 0:17:56.7]} 48... Kd3 {[%clk 0:18:10.1]} 49. Kxh6 {[%clk 0:18:05.5]} 49... Kxc3 {[%clk 0:18:19.7]} 50. Kg7 {[%clk 0:18:14.7]} 50... d4 {[%clk 0:18:29.6]} 51. Kxf7 {[%clk 0:18:21.6]} 51... d3 {[%clk 0:18:39.5]} 52. Kxe6 {[%clk 0:18:30.7]} 52... d2 {[%clk 0:18:49.4]} 53. Kd6 {[%clk 0:18:38.9]} 53... d1=Q+ {[%clk 0:18:59.3]} 54. Kc5 {[%clk 0:18:47.8]} 54... Qg4 {[%clk 0:19:06.7]} 55. Kb5 {[%clk 0:18:55.8]} 55... Qd4 {[%clk 0:19:13.6]} 56. Kc6 {[%clk 0:19:02]} 56... Qe5 {[%clk 0:19:22.2]} 57. Kb6 {[%clk 0:19:10.1]} 57... Qd5 {[%clk 0:19:31.5]} 58. Kc7 {[%clk 0:19:17.1]} 58... Qe6 {[%clk 0:19:40.6]} 59. Kb7 {[%clk 0:19:24.8]} 59... Qd6 {[%clk 0:19:49.4]} 60. Ka7 {[%clk 0:19:32.6]} 60... Qc6 {[%clk 0:19:58.3]} 61. Kb8 {[%clk 0:19:41.4]} 61... Qd7 {[%clk 0:20:07.9]} 62. Ka8 {[%clk 0:19:49.8]} 62... Kb4 {[%clk 0:20:17.8]} 63. Kb8 {[%clk 0:19:59]} 63... Kb5 {[%clk 0:20:27.5]} 64. Ka8 {[%clk 0:20:05.9]} 64... Kb6 {[%clk 0:20:36.2]} 65. Kb8 {[%clk 0:20:14.8]} 65... Qb7# {[%clk 0:20:45.3]} 0-1

[Event "Live Chess"]
[Site "Chess.com"]
[Date "2021.02.06"]
[Round "-"]
[White "cassiusl"]
[Black "xiaowu2"]
[Result "1-0"]
[CurrentPosition "1k5R/8/1K6/8/5PP1/4P3/8/8 b - -"]
[Timezone "UTC"]
[ECO "D53"]
[ECOUrl "https://www.chess.com/openings/Queens-Gambit-Declined-Modern-Variation-4...Be7-5.e3"]
[UTCDate "2021.02.06"]
[UTCTime "20:30:28"]
[WhiteElo "1343"]
[BlackElo "1028"]
[TimeControl "1200+10"]
[Termination "cassiusl won by checkmate"]
[StartTime "20:30:28"]
[EndDate "2021.02.06"]
[EndTime "21:09:09"]
[Link "https://www.chess.com/live/game/6472983479"]

1. d4 {[%clk 0:19:59.7]} 1... d5 {[%clk 0:20:07.4]} 2. c4 {[%clk 0:20:07.6]} 2... e6 {[%clk 0:20:14.9]} 3. Nc3 {[%clk 0:20:15.9]} 3... Nf6 {[%clk 0:20:20.7]} 4. Bg5 {[%clk 0:20:23.8]} 4... Be7 {[%clk 0:20:23]} 5. e3 {[%clk 0:20:25.9]} 5... Nc6 {[%clk 0:20:27.5]} 6. Nf3 {[%clk 0:20:32.6]} 6... Bd7 {[%clk 0:20:30]} 7. Bd3 {[%clk 0:20:31.7]} 7... O-O {[%clk 0:20:34.8]} 8. O-O {[%clk 0:20:30.2]} 8... h6 {[%clk 0:20:40.3]} 9. Bh4 {[%clk 0:20:29.2]} 9... Ne4 {[%clk 0:20:10.7]} 10. Bxe7 {[%clk 0:18:48.7]} 10... Qxe7 {[%clk 0:20:15.9]} 11. Nxe4 {[%clk 0:18:56.1]} 11... dxe4 {[%clk 0:20:24.6]} 12. Bxe4 {[%clk 0:19:05.6]} 12... f5 {[%clk 0:20:28.1]} 13. Bc2 {[%clk 0:18:12.3]} 13... a6 {[%clk 0:20:23.7]} 14. a3 {[%clk 0:17:43.2]} 14... b5 {[%clk 0:20:25.4]} 15. b3 {[%clk 0:16:29.4]} 15... Na5 {[%clk 0:20:13.9]} 16. cxb5 {[%clk 0:15:09.9]} 16... axb5 {[%clk 0:20:17]} 17. Ne5 {[%clk 0:14:51.3]} 17... c6 {[%clk 0:20:18]} 18. Ng6 {[%clk 0:14:19.3]} 18... Qf6 {[%clk 0:19:54.8]} 19. Nxf8 {[%clk 0:14:18.3]} 19... Qxf8 {[%clk 0:20:04.7]} 20. a4 {[%clk 0:13:41.3]} 20... bxa4 {[%clk 0:20:03]} 21. bxa4 {[%clk 0:13:51.2]} 21... Nb7 {[%clk 0:20:04.2]} 22. Qd2 {[%clk 0:12:36.8]} 22... Qd8 {[%clk 0:20:09.1]} 23. Rfb1 {[%clk 0:12:14.1]} 23... Bc8 {[%clk 0:19:52]} 24. Qc3 {[%clk 0:11:29.2]} 24... Na5 {[%clk 0:19:38.8]} 25. Bb3 {[%clk 0:10:38.7]} 25... Bd7 {[%clk 0:19:12.1]} 26. h3 {[%clk 0:10:11.2]} 26... Qc7 {[%clk 0:18:53.1]} 27. Rb2 {[%clk 0:09:36.2]} 27... Nb7 {[%clk 0:18:29.4]} 28. Rab1 {[%clk 0:08:38.2]} 28... c5 {[%clk 0:18:18.1]} 29. dxc5 {[%clk 0:08:10.8]} 29... Qc6 {[%clk 0:18:03.5]} 30. Bxe6+ {[%clk 0:07:25.7]} 30... Bxe6 {[%clk 0:17:44.4]} 31. Rxb7 {[%clk 0:07:30.8]} 31... Bd7 {[%clk 0:17:14.5]} 32. Rb8+ {[%clk 0:06:59.8]} 32... Rxb8 {[%clk 0:17:18.4]} 33. Rxb8+ {[%clk 0:07:09.7]} 33... Bc8 {[%clk 0:17:22.8]} 34. Qb3+ {[%clk 0:06:57.5]} 34... Kf8 {[%clk 0:17:24]} 35. Qb6 {[%clk 0:06:09.1]} 35... Qd7 {[%clk 0:17:18.8]} 36. Qd6+ {[%clk 0:06:11.1]} 36... Ke8 {[%clk 0:17:23.4]} 37. Qxd7+ {[%clk 0:06:12.9]} 37... Kxd7 {[%clk 0:17:33.3]} 38. Kf1 {[%clk 0:05:55.2]} 38... Kc7 {[%clk 0:17:34.2]} 39. Rb4 {[%clk 0:05:38.9]} 39... Kc6 {[%clk 0:17:41.2]} 40. Ke1 {[%clk 0:05:18.9]} 40... Kxc5 {[%clk 0:17:44.6]} 41. Rb5+ {[%clk 0:05:27.8]} 41... Kc6 {[%clk 0:17:52.4]} 42. Kd2 {[%clk 0:05:33.9]} 42... g6 {[%clk 0:17:51.9]} 43. Kc3 {[%clk 0:05:32.6]} 43... Ba6 {[%clk 0:17:52.8]} 44. Re5 {[%clk 0:05:36.2]} 44... Kd6 {[%clk 0:17:57]} 45. Kd4 {[%clk 0:04:59.3]} 45... Bf1 {[%clk 0:17:56.3]} 46. Rd5+ {[%clk 0:04:46.3]} 46... Ke6 {[%clk 0:18:03.3]} 47. Re5+ {[%clk 0:03:54]} 47... Kd6 {[%clk 0:18:08.5]} 48. g3 {[%clk 0:03:54.4]} 48... Bxh3 {[%clk 0:18:13.4]} 49. a5 {[%clk 0:04:03.1]} 49... Bg2 {[%clk 0:18:18.9]} 50. a6 {[%clk 0:04:09.8]} 50... Bc6 {[%clk 0:18:18.2]} 51. Ra5 {[%clk 0:03:55.6]} 51... Ba8 {[%clk 0:18:16.5]} 52. a7 {[%clk 0:04:00.5]} 52... Ke7 {[%clk 0:18:16.4]} 53. Re5+ {[%clk 0:03:57.8]} 53... Kf6 {[%clk 0:18:21.6]} 54. Re8 {[%clk 0:04:05.9]} 54... Bc6 {[%clk 0:18:23.9]} 55. a8=Q {[%clk 0:03:59.4]} 55... Bxa8 {[%clk 0:18:30.9]} 56. Rxa8 {[%clk 0:04:09.3]} 56... g5 {[%clk 0:18:36.4]} 57. Ra6+ {[%clk 0:04:16.2]} 57... Kg7 {[%clk 0:18:43.1]} 58. Ke5 {[%clk 0:04:22.7]} 58... Kf7 {[%clk 0:18:39.5]} 59. Kxf5 {[%clk 0:04:26.6]} 59... Kg7 {[%clk 0:18:45.1]} 60. Ra7+ {[%clk 0:04:33.5]} 60... Kf8 {[%clk 0:18:49.9]} 61. Rh7 {[%clk 0:04:39]} 61... Kg8 {[%clk 0:18:56]} 62. Rxh6 {[%clk 0:04:48]} 62... Kg7 {[%clk 0:19:00.8]} 63. Rg6+ {[%clk 0:04:56.4]} 63... Kf7 {[%clk 0:19:08.7]} 64. Rxg5 {[%clk 0:05:04.6]} 64... Ke7 {[%clk 0:19:16.9]} 65. Rg6 {[%clk 0:05:13.5]} 65... Kf7 {[%clk 0:19:25.4]} 66. Rh6 {[%clk 0:05:18.4]} 66... Kg7 {[%clk 0:19:33.9]} 67. Ra6 {[%clk 0:05:26.1]} 67... Kh7 {[%clk 0:19:42]} 68. Kg5 {[%clk 0:05:34.5]} 68... Kg7 {[%clk 0:19:47.9]} 69. Ra7+ {[%clk 0:05:43.1]} 69... Kg8 {[%clk 0:19:50.8]} 70. Kg6 {[%clk 0:05:50.7]} 70... Kf8 {[%clk 0:19:59.6]} 71. g4 {[%clk 0:05:55.7]} 71... Ke8 {[%clk 0:20:07.3]} 72. Kf6 {[%clk 0:06:03.4]} 72... Kd8 {[%clk 0:20:16]} 73. Ke6 {[%clk 0:06:09.6]} 73... Kc8 {[%clk 0:20:24.9]} 74. Kd6 {[%clk 0:06:18.5]} 74... Kb8 {[%clk 0:20:33.9]} 75. Rh7 {[%clk 0:06:27.4]} 75... Ka8 {[%clk 0:20:42.6]} 76. Kc6 {[%clk 0:06:36.5]} 76... Kb8 {[%clk 0:20:51.6]} 77. f4 {[%clk 0:06:44.5]} 77... Ka8 {[%clk 0:20:59.1]} 78. Kb6 {[%clk 0:06:51.6]} 78... Kb8 {[%clk 0:21:07.4]} 79. Rh8# {[%clk 0:07:01.5]} 1-0

[Event "Live Chess"]
[Site "Chess.com"]
[Date "2021.02.06"]
[Round "-"]
[White "AaravGoel5"]
[Black "SamDaGreat"]
[Result "1-0"]
[CurrentPosition "8/1p4k1/p1p4p/2b1Q3/8/P6P/1P4P1/4K3 b - -"]
[Timezone "UTC"]
[ECO "C62"]
[ECOUrl "https://www.chess.com/openings/Ruy-Lopez-Opening-Old-Steinitz-Defense-4.c3"]
[UTCDate "2021.02.06"]
[UTCTime "20:30:48"]
[WhiteElo "1117"]
[BlackElo "1568"]
[TimeControl "1200+10"]
[Termination "AaravGoel5 won by resignation"]
[StartTime "20:30:48"]
[EndDate "2021.02.06"]
[EndTime "20:54:40"]
[Link "https://www.chess.com/live/game/6472983952"]

1. e4 {[%clk 0:20:07.4]} 1... e5 {[%clk 0:20:08.2]} 2. Nf3 {[%clk 0:20:15]} 2... Nc6 {[%clk 0:20:15.6]} 3. Bb5 {[%clk 0:20:21.5]} 3... d6 {[%clk 0:20:21.3]} 4. c3 {[%clk 0:20:23.2]} 4... Bd7 {[%clk 0:20:21.5]} 5. d4 {[%clk 0:20:29.9]} 5... exd4 {[%clk 0:20:30.3]} 6. cxd4 {[%clk 0:20:36.1]} 6... Nf6 {[%clk 0:20:32.9]} 7. Nc3 {[%clk 0:20:42.9]} 7... a6 {[%clk 0:20:34.6]} 8. Be2 {[%clk 0:20:48.4]} 8... h6 {[%clk 0:20:35.3]} 9. O-O {[%clk 0:20:52.5]} 9... Be7 {[%clk 0:20:43.9]} 10. h3 {[%clk 0:20:58.3]} 10... O-O {[%clk 0:20:52.4]} 11. a3 {[%clk 0:21:04.9]} 11... Re8 {[%clk 0:20:27.2]} 12. d5 {[%clk 0:21:12.6]} 12... Ne5 {[%clk 0:20:34.7]} 13. Nxe5 {[%clk 0:21:18]} 13... dxe5 {[%clk 0:20:42.8]} 14. Qd3 {[%clk 0:21:25.2]} 14... c6 {[%clk 0:20:46.9]} 15. d6 {[%clk 0:21:29.9]} 15... Bf8 {[%clk 0:20:55.5]} 16. f4 {[%clk 0:21:35]} 16... exf4 {[%clk 0:21:02.9]} 17. Bxf4 {[%clk 0:21:39.1]} 17... Be6 {[%clk 0:21:05]} 18. Rf2 {[%clk 0:21:43]} 18... Qd7 {[%clk 0:21:04.2]} 19. Qg3 {[%clk 0:21:48.5]} 19... Kh8 {[%clk 0:20:38.9]} 20. e5 {[%clk 0:21:44.6]} 20... Nd5 {[%clk 0:20:38.8]} 21. Nxd5 {[%clk 0:21:50.2]} 21... Bxd5 {[%clk 0:20:47.2]} 22. Raf1 {[%clk 0:21:55.8]} 22... Rad8 {[%clk 0:20:46.3]} 23. Bg4 {[%clk 0:22:02.3]} 23... Be6 {[%clk 0:20:50.2]} 24. Bxh6 {[%clk 0:22:05.4]} 24... gxh6 {[%clk 0:18:55.1]} 25. Rxf7 {[%clk 0:21:07.2]} 25... Qxf7 {[%clk 0:18:59.7]} 26. Rxf7 {[%clk 0:21:14.9]} 26... Bxf7 {[%clk 0:19:08.7]} 27. d7 {[%clk 0:21:09.3]} 27... Re7 {[%clk 0:19:02.9]} 28. e6 {[%clk 0:21:10.8]} 28... Bg6 {[%clk 0:18:57.8]} 29. Qc7 {[%clk 0:21:08.3]} 29... Rde8 {[%clk 0:14:42.7]} 30. Qc8 {[%clk 0:21:08.6]} 30... Rxd7 {[%clk 0:10:27.9]} 31. exd7 {[%clk 0:20:58.2]} 31... Bc5+ {[%clk 0:10:32.9]} 32. Kf1 {[%clk 0:20:39.9]} 32... Bd3+ {[%clk 0:10:37.5]} 33. Be2 {[%clk 0:20:46.6]} 33... Bxe2+ {[%clk 0:10:38.7]} 34. Ke1 {[%clk 0:20:55.8]} 34... Bh5+ {[%clk 0:07:28.9]} 35. dxe8=Q+ {[%clk 0:21:01.8]} 35... Bxe8 {[%clk 0:07:38.8]} 36. Qxe8+ {[%clk 0:21:10.5]} 36... Kg7 {[%clk 0:07:45.4]} 37. Qe5+ {[%clk 0:21:18.1]} 1-0

[Event "Live Chess"]
[Site "Chess.com"]
[Date "2021.02.06"]
[Round "-"]
[White "RaggedFire"]
[Black "AnshulPlaysChess"]
[Result "0-1"]
[CurrentPosition "8/1k6/4qK2/8/6q1/8/8/8 w - -"]
[Timezone "UTC"]
[ECO "C50"]
[ECOUrl "https://www.chess.com/openings/Giuoco-Piano-Game-Giuoco-Pianissimo-Italian-Four-Knights-Variation"]
[UTCDate "2021.02.06"]
[UTCTime "20:30:42"]
[WhiteElo "1186"]
[BlackElo "885"]
[TimeControl "1200+10"]
[Termination "AnshulPlaysChess won by checkmate"]
[StartTime "20:30:42"]
[EndDate "2021.02.06"]
[EndTime "20:43:55"]
[Link "https://www.chess.com/live/game/6472984307"]

1. e4 {[%clk 0:20:10]} 1... e5 {[%clk 0:20:09.2]} 2. Nf3 {[%clk 0:20:17.9]} 2... Nc6 {[%clk 0:20:17.4]} 3. Bc4 {[%clk 0:20:25.6]} 3... Bc5 {[%clk 0:20:24.8]} 4. Nc3 {[%clk 0:20:33.1]} 4... Nf6 {[%clk 0:20:32.9]} 5. d3 {[%clk 0:20:40.3]} 5... O-O {[%clk 0:20:31.3]} 6. a3 {[%clk 0:20:40.7]} 6... h6 {[%clk 0:20:39.5]} 7. b4 {[%clk 0:20:48.9]} 7... Bd4 {[%clk 0:20:43.8]} 8. Bb2 {[%clk 0:20:47.7]} 8... a6 {[%clk 0:20:49.5]} 9. Nd5 {[%clk 0:20:39.4]} 9... d6 {[%clk 0:20:54.5]} 10. Nxf6+ {[%clk 0:20:47.5]} 10... Qxf6 {[%clk 0:21:01.9]} 11. c3 {[%clk 0:20:54.7]} 11... Bb6 {[%clk 0:21:03.3]} 12. O-O {[%clk 0:20:54.1]} 12... Qg6 {[%clk 0:21:06.5]} 13. Ba2 {[%clk 0:20:51.9]} 13... Bh3 {[%clk 0:21:12.8]} 14. g3 {[%clk 0:20:50.2]} 14... Bxf1 {[%clk 0:21:20.2]} 15. Qxf1 {[%clk 0:21:00.1]} 15... Rfe8 {[%clk 0:21:17.1]} 16. Nh4 {[%clk 0:21:08.6]} 16... Qf6 {[%clk 0:21:17.9]} 17. Rd1 {[%clk 0:20:50.6]} 17... a5 {[%clk 0:21:06.1]} 18. Rd2 {[%clk 0:20:48]} 18... axb4 {[%clk 0:21:09.5]} 19. cxb4 {[%clk 0:20:54.3]} 19... Nxb4 {[%clk 0:21:10]} 20. axb4 {[%clk 0:20:48.5]} 20... Rxa2 {[%clk 0:21:18.3]} 21. d4 {[%clk 0:20:56.9]} 21... Bxd4 {[%clk 0:21:18.6]} 22. Qb1 {[%clk 0:20:42.8]} 22... Rxb2 {[%clk 0:21:11.2]} 23. Rxb2 {[%clk 0:20:41.2]} 23... Bxb2 {[%clk 0:21:17.5]} 24. Qxb2 {[%clk 0:20:48.9]} 24... b6 {[%clk 0:21:22.7]} 25. Qc3 {[%clk 0:20:49.8]} 25... Rc8 {[%clk 0:21:29.8]} 26. Qc6 {[%clk 0:20:44.5]} 26... Qd8 {[%clk 0:21:24.6]} 27. b5 {[%clk 0:20:36.7]} 27... Qe8 {[%clk 0:21:31.4]} 28. Qxe8+ {[%clk 0:20:34.5]} 28... Rxe8 {[%clk 0:21:39.3]} 29. Nf5 {[%clk 0:20:43.2]} 29... Ra8 {[%clk 0:21:46.3]} 30. Ne7+ {[%clk 0:20:43.4]} 30... Kf8 {[%clk 0:21:54]} 31. Nd5 {[%clk 0:20:52.3]} 31... Ra1+ {[%clk 0:21:52.2]} 32. Kg2 {[%clk 0:21:00.2]} 32... Rc1 {[%clk 0:21:59.2]} 33. Kf3 {[%clk 0:20:57]} 33... Rc4 {[%clk 0:22:02.1]} 34. Ke3 {[%clk 0:20:51.4]} 34... Rc5 {[%clk 0:22:09.6]} 35. f4 {[%clk 0:20:55.2]} 35... f6 {[%clk 0:22:16.1]} 36. fxe5 {[%clk 0:20:59.2]} 36... fxe5 {[%clk 0:22:24.8]} 37. h4 {[%clk 0:21:04.1]} 37... Ke8 {[%clk 0:22:32.6]} 38. Kf3 {[%clk 0:21:04.1]} 38... Kd7 {[%clk 0:22:41.2]} 39. Kg4 {[%clk 0:21:13.1]} 39... Rxb5 {[%clk 0:22:49.9]} 40. Kh5 {[%clk 0:21:21.6]} 40... Rb3 {[%clk 0:22:52]} 41. g4 {[%clk 0:21:25.5]} 41... Rh3 {[%clk 0:22:56.9]} 42. g5 {[%clk 0:21:22.6]} 42... hxg5 {[%clk 0:23:04.7]} 43. Kxg5 {[%clk 0:21:31.3]} 43... b5 {[%clk 0:23:11.6]} 44. h5 {[%clk 0:21:33.6]} 44... c5 {[%clk 0:23:17]} 45. Nb6+ {[%clk 0:21:30.5]} 45... Kc6 {[%clk 0:23:25]} 46. Nd5 {[%clk 0:21:35.3]} 46... b4 {[%clk 0:23:32.5]} 47. Ne7+ {[%clk 0:21:44.8]} 47... Kb5 {[%clk 0:23:39.7]} 48. Nf5 {[%clk 0:21:42.2]} 48... b3 {[%clk 0:23:47.6]} 49. Nxg7 {[%clk 0:21:49.8]} 49... b2 {[%clk 0:23:55.6]} 50. h6 {[%clk 0:21:58.6]} 50... Rxh6 {[%clk 0:24:03]} 51. Kxh6 {[%clk 0:22:07.1]} 51... b1=Q {[%clk 0:24:11.9]} 52. Kg6 {[%clk 0:22:15.4]} 52... Qxe4+ {[%clk 0:24:20.6]} 53. Kf6 {[%clk 0:22:20.5]} 53... c4 {[%clk 0:24:29.5]} 54. Ne6 {[%clk 0:22:25.4]} 54... c3 {[%clk 0:24:37.5]} 55. Nc7+ {[%clk 0:22:32.1]} 55... Kc6 {[%clk 0:24:46.6]} 56. Na6 {[%clk 0:22:39.5]} 56... Kb6 {[%clk 0:24:53.9]} 57. Nb8 {[%clk 0:22:46.3]} 57... Kb7 {[%clk 0:25:02.7]} 58. Nd7 {[%clk 0:22:55.6]} 58... c2 {[%clk 0:25:09]} 59. Ke6 {[%clk 0:22:56.3]} 59... Qd4 {[%clk 0:24:52.1]} 60. Nf6 {[%clk 0:22:43.1]} 60... c1=Q {[%clk 0:24:58.8]} 61. Nd7 {[%clk 0:22:50.5]} 61... Qg4+ {[%clk 0:25:05.5]} 62. Kxd6 {[%clk 0:22:56]} 62... Qd2+ {[%clk 0:25:13.5]} 63. Kxe5 {[%clk 0:23:03]} 63... Qdxd7 {[%clk 0:25:20.9]} 64. Kf6 {[%clk 0:23:11.4]} 64... Qde6# {[%clk 0:25:28.4]} 0-1

[Event "Live Chess"]
[Site "Chess.com"]
[Date "2021.02.06"]
[Round "-"]
[White "VAP_1D"]
[Black "Not_Draj"]
[Result "1-0"]
[CurrentPosition "8/8/2PK4/8/8/2k5/6P1/8 b - -"]
[Timezone "UTC"]
[ECO "D00"]
[ECOUrl "https://www.chess.com/openings/Queens-Pawn-Opening-Accelerated-London-System"]
[UTCDate "2021.02.06"]
[UTCTime "20:30:45"]
[WhiteElo "1401"]
[BlackElo "1105"]
[TimeControl "1200+10"]
[Termination "VAP_1D won by resignation"]
[StartTime "20:30:45"]
[EndDate "2021.02.06"]
[EndTime "20:56:35"]
[Link "https://www.chess.com/live/game/6472984640"]

1. d4 {[%clk 0:20:10]} 1... d5 {[%clk 0:20:07.2]} 2. Bf4 {[%clk 0:20:18.2]} 2... Nf6 {[%clk 0:20:10.3]} 3. e3 {[%clk 0:20:27.1]} 3... Bf5 {[%clk 0:20:06.5]} 4. Nf3 {[%clk 0:20:34.6]} 4... Nbd7 {[%clk 0:20:04.2]} 5. c3 {[%clk 0:20:42.3]} 5... c6 {[%clk 0:20:09.5]} 6. Nbd2 {[%clk 0:20:49.7]} 6... Qb6 {[%clk 0:20:12.1]} 7. Nb3 {[%clk 0:20:53.9]} 7... Ne4 {[%clk 0:20:16]} 8. a4 {[%clk 0:20:47.9]} 8... a5 {[%clk 0:20:19.8]} 9. Be2 {[%clk 0:20:42]} 9... h6 {[%clk 0:20:03.5]} 10. O-O {[%clk 0:20:48.8]} 10... g5 {[%clk 0:20:05.9]} 11. Bg3 {[%clk 0:20:54.8]} 11... Nxg3 {[%clk 0:20:11.1]} 12. fxg3 {[%clk 0:21:03.1]} 12... Bg4 {[%clk 0:20:15.8]} 13. Rb1 {[%clk 0:20:57.6]} 13... e6 {[%clk 0:19:54.3]} 14. Nbd2 {[%clk 0:21:04.3]} 14... Bf5 {[%clk 0:19:57.4]} 15. Rc1 {[%clk 0:16:54.5]} 15... Qxb2 {[%clk 0:20:01.7]} 16. e4 {[%clk 0:16:52.5]} 16... dxe4 {[%clk 0:19:44.2]} 17. Nc4 {[%clk 0:16:52.5]} 17... Qxc1 {[%clk 0:18:54.3]} 18. Qxc1 {[%clk 0:17:01.1]} 18... exf3 {[%clk 0:18:57.6]} 19. Bxf3 {[%clk 0:17:09.1]} 19... Bd3 {[%clk 0:19:00.9]} 20. Nd2 {[%clk 0:16:51.9]} 20... Bxf1 {[%clk 0:19:06.2]} 21. Nxf1 {[%clk 0:17:01.8]} 21... Bd6 {[%clk 0:18:59.1]} 22. Ne3 {[%clk 0:17:01.8]} 22... Rb8 {[%clk 0:18:57.3]} 23. Nc4 {[%clk 0:17:04.3]} 23... Be7 {[%clk 0:18:37.7]} 24. Qb2 {[%clk 0:17:04.2]} 24... O-O {[%clk 0:18:16.1]} 25. Ne5 {[%clk 0:17:09.2]} 25... Nxe5 {[%clk 0:18:21.5]} 26. dxe5 {[%clk 0:17:19.1]} 26... Bc5+ {[%clk 0:18:28.3]} 27. Kf1 {[%clk 0:17:24.1]} 27... Rfc8 {[%clk 0:18:20.8]} 28. Qd2 {[%clk 0:17:28.7]} 28... b5 {[%clk 0:18:20.4]} 29. axb5 {[%clk 0:17:35.1]} 29... Rxb5 {[%clk 0:18:15.3]} 30. Qd7 {[%clk 0:17:15.3]} 30... Rb1+ {[%clk 0:18:10.3]} 31. Ke2 {[%clk 0:17:18.8]} 31... Rb2+ {[%clk 0:18:11.8]} 32. Kd3 {[%clk 0:17:12.5]} 32... Rbb8 {[%clk 0:18:15]} 33. Kc4 {[%clk 0:14:26.2]} 33... Bf8 {[%clk 0:17:35.1]} 34. Bh5 {[%clk 0:14:22.1]} 34... Bg7 {[%clk 0:14:42.2]} 35. Bxf7+ {[%clk 0:14:22.1]} 35... Kh7 {[%clk 0:14:47.5]} 36. Bxe6 {[%clk 0:14:25.4]} 36... a4 {[%clk 0:14:41.6]} 37. Qd3+ {[%clk 0:14:28]} 37... Kh8 {[%clk 0:14:49.2]} 38. Bxc8 {[%clk 0:14:35.4]} 38... Rxc8 {[%clk 0:14:51.4]} 39. e6 {[%clk 0:14:38.5]} 39... Re8 {[%clk 0:14:44.2]} 40. e7 {[%clk 0:14:43.9]} 40... Bf6 {[%clk 0:14:48.7]} 41. Qg6 {[%clk 0:14:41.1]} 41... Rxe7 {[%clk 0:14:36]} 42. Qxf6+ {[%clk 0:14:49.1]} 42... Rg7 {[%clk 0:14:45.6]} 43. Qxh6+ {[%clk 0:14:57.6]} 43... Rh7 {[%clk 0:14:54.6]} 44. Qxg5 {[%clk 0:14:59.9]} 44... Rxh2 {[%clk 0:14:59.2]} 45. Qf6+ {[%clk 0:15:02.2]} 45... Kh7 {[%clk 0:15:06.7]} 46. Qh4+ {[%clk 0:14:58.7]} 46... Rxh4+ {[%clk 0:15:14.5]} 47. gxh4 {[%clk 0:15:08.6]} 47... a3 {[%clk 0:15:23.3]} 48. Kb3 {[%clk 0:15:18]} 48... Kh6 {[%clk 0:15:31.8]} 49. Kxa3 {[%clk 0:15:27.3]} 49... Kh5 {[%clk 0:15:40.8]} 50. Kb4 {[%clk 0:15:37.1]} 50... Kxh4 {[%clk 0:15:50]} 51. Kc5 {[%clk 0:15:47]} 51... Kg4 {[%clk 0:15:59.1]} 52. Kxc6 {[%clk 0:15:56.9]} 52... Kf4 {[%clk 0:16:08.3]} 53. Kd6 {[%clk 0:16:06.3]} 53... Ke4 {[%clk 0:16:17.2]} 54. c4 {[%clk 0:16:15.8]} 54... Kd4 {[%clk 0:16:26.9]} 55. c5 {[%clk 0:16:25.4]} 55... Kc3 {[%clk 0:16:36.3]} 56. c6 {[%clk 0:16:35]} 1-0